bitfinex/quotes_SOLUSD_20240620
["timestamp","ask_amount","ask_price","bid_price","bid_amount"]
[1718867104931,7.29,136.16,136.11,14.6368]
[1718867105437,15.026096,136.19,136.13,7.3455]
[1718867105645,23.4378,136.2,136.14,7.3449]
[1718867105935,23.4378,136.2,136.15,7.3447]
[1718867106133,7.29,136.19,136.15,7.3447]
[1718867106520,7.29,136.19,136.14,14.6351]
[1718867106726,7.29,136.18,136.14,14.6351]
[1718867107445,7.29,136.18,136.14,7.3451]
[1718867107740,6.56,136.21,136.17,7.3434]
[1718867107921,28.33213674,136.24,136.13,15.8112]
[1718867108241,15.1933,136.28,136.22,7.3408]
[1718867108539,21.14299593,136.28,136.17,7.29]
[1718867108933,7.29,136.22,136.17,7.29]
[1718867109150,7.29,136.22,136.18,7.3428]
[1718867109446,7.3396,136.25,136.19,7.3423]
[1718867109634,7.29,136.22,136.19,7.3423]
[1718867109833,7.29,136.22,136.18,7.343]
[1718867110140,7.29,136.23,136.19,7.3426]
[1718867110312,7.29,136.24,136.2,7.3419]
[1718867110519,7.3389,136.26,136.21,7.3414]
[1718867110837,7.29,136.25,136.2,14.6319]
[1718867111137,7.29,136.24,136.2,14.6319]
[1718867111517,7.3389,136.26,136.2,7.3419]
[1718867112016,7.34,136.24,136.16,0.34]
[1718867112232,7.34,136.24,136.16,0.17]
[1718867112430,7.3396,136.25,136.16,0.51]
[1718867112632,7.3396,136.25,136.17,0.17]
[1718867112819,7.3396,136.25,136.2,7.3419]
[1718867113020,7.34,136.24,136.16,0.51]
[1718867113438,7.3396,136.25,136.2,7.3418]
[1718867114023,39.48769593,136.28,136.21,7.3414]
[1718867114235,20.0,136.27,136.21,7.3414]
[1718867115341,7.3391,136.26,136.21,7.3414]
[1718867115538,15.1933,136.28,136.15,6.1683]
[1718867115845,7.3401,136.24,136.15,6.1683]
[1718867116027,7.3401,136.24,136.18,7.3428]
[1718867116427,7.342,136.21,136.15,13.5127]
[1718867116626,33.5386,136.28,136.15,6.1683]
[1718867116832,7.339,136.26,136.2,7.3416]
[1718867117232,7.3391,136.26,136.2,7.3416]
[1718867117834,7.3396,136.25,136.2,7.3416]
[1718867118036,7.34,136.24,136.19,7.3426]
[1718867118235,7.3405,136.23,136.18,7.3431]
[1718867118847,7.34,136.24,136.19,7.3426]
[1718867119227,7.341,136.22,136.17,7.3434]
[1718867119427,0.34,136.23,136.15,6.1683]
[1718867119428,0.17,136.23,136.15,6.1683]
[1718867119727,0.34,136.24,136.15,6.1683]
[1718867119925,0.34,136.24,136.18,7.343]
[1718867119926,7.6804,136.24,136.18,7.343]
[1718867120126,7.6804,136.24,136.19,7.3425]
[1718867120430,7.3395,136.25,136.2,7.3421]
[1718867120832,7.3395,136.25,136.19,7.3424]
[1718867121031,7.3395,136.25,136.2,7.3419]
[1718867121334,0.34,136.26,136.21,7.3414]
[1718867121538,7.3392,136.26,136.21,7.3414]
[1718867121847,7.3392,136.26,136.16,0.34]
[1718867121848,7.3385,136.27,136.22,7.3408]
[1718867122024,7.3389,136.26,136.21,7.3414]
[1718867122429,7.3385,136.27,136.21,7.3412]
[1718867122750,7.5085,136.27,136.16,0.34]
[1718867122936,7.5085,136.27,136.17,0.34]
[1718867123126,7.5085,136.27,136.18,0.34]
[1718867123851,7.339,136.26,136.21,7.3415]
[1718867124039,7.3395,136.25,136.2,7.342]
[1718867124239,7.3391,136.26,136.2,7.342]
[1718867124750,7.3395,136.25,136.2,7.342]
[1718867125125,0.34,136.27,136.15,6.1683]
[1718867125333,7.341,136.22,136.17,7.3436]
[1718867125649,7.3407,136.23,136.17,7.3436]
[1718867125952,7.3407,136.23,136.18,7.3431]
[1718867126452,7.5102,136.24,136.19,7.3426]
[1718867126653,7.5102,136.24,136.18,7.343]
[1718867126654,7.3405,136.23,136.18,7.343]
[1718867127026,7.341,136.22,136.17,7.3435]
[1718867127246,0.17,136.22,136.13,7.3456]
[1718867127549,165.51,136.22,136.1,15.8543]
[1718867127750,7.3446,136.16,136.11,7.3465]
[1718867128054,7.3433,136.18,136.13,7.3457]
[1718867128240,0.34,136.17,136.13,7.3457]
[1718867128643,7.6828,136.19,136.14,7.3452]
[1718867128940,7.344,136.17,136.08,0.17]
[1718867129135,0.51,136.18,136.08,0.17]
[1718867129357,0.34,136.18,136.08,0.17]
[1718867129544,7.5132,136.19,136.13,7.3455]
[1718867129747,0.17,136.19,136.08,0.17]
[1718867129926,7.3443,136.16,136.11,7.3467]
[1718867130128,21.7093,136.16,136.09,7.3477]
[1718867130342,7.3453,136.15,136.09,7.3477]
[1718867130538,0.17,136.14,136.08,7.3484]
[1718867130846,0.34,136.14,136.08,7.3484]
[1718867131051,0.34,136.14,136.04,21.7277]
[1718867131252,7.3494,136.07,136.01,15.8543]
[1718867131445,7.3484,136.09,136.03,7.3511]
[1718867131749,7.3465,136.12,136.07,7.349]
[1718867131953,0.34,136.14,136.01,21.77]
[1718867132141,0.17,136.13,136.09,7.3477]
[1718867132336,0.34,136.14,136.09,7.3477]
[1718867132337,0.17,136.14,136.09,7.3477]
[1718867132532,0.17,136.15,136.1,7.3473]
[1718867132533,7.515,136.15,136.1,7.3473]
[1718867132739,7.3454,136.14,136.08,7.3485]
[1718867133136,7.3454,136.14,136.06,7.3492]
[1718867133137,0.17,136.14,136.06,7.3492]
[1718867133338,20.17,136.14,136.02,0.17]
[1718867133543,7.5163,136.13,136.08,7.3485]
[1718867133739,7.3451,136.15,136.09,7.3479]
[1718867134058,7.3453,136.14,136.09,7.3479]
[1718867134645,21.7093,136.16,136.04,21.77]
[1718867134840,7.3451,136.15,136.05,0.68]
[1718867135242,7.3467,136.12,136.05,0.68]
[1718867135447,7.3455,136.14,136.08,7.3484]
[1718867135757,7.3455,136.14,136.05,0.68]
[1718867135941,40.0706,136.16,136.04,20.0]
[1718867136143,40.0706,136.16,136.0,15.4794]
[1718867136144,21.77,136.15,136.0,15.4794]
[1718867136471,7.3461,136.13,136.07,7.3487]
[1718867136638,7.3471,136.11,136.06,7.3495]
[1718867136965,0.17,136.13,136.01,20.0]
[1718867137133,7.3466,136.12,136.07,7.3487]
[1718867137457,7.8561,136.13,136.08,7.3485]
[1718867137655,0.17,136.15,136.1,7.3473]
[1718867137842,21.3657,136.2,136.08,0.17]
[1718867138155,21.3657,136.2,136.08,0.68]
[1718867138347,7.3433,136.18,136.08,0.68]
[1718867138655,7.344,136.17,136.11,7.3467]
[1718867139437,7.344,136.17,136.12,7.3463]
[1718867140439,7.6834,136.18,136.12,7.3463]
[1718867140833,0.34,136.18,136.08,0.68]
[1718867141033,29.4527,136.19,136.08,0.68]
[1718867141034,7.3427,136.19,136.14,7.345]
[1718867141449,28.708,136.2,136.15,7.3448]
[1718867142044,13.9398,136.23,136.17,7.3434]
[1718867142245,13.9398,136.23,136.17,7.3435]
[1718867142543,13.9397,136.23,136.13,0.17]
[1718867142762,7.341,136.22,136.17,7.3435]
[1718867142946,13.9395,136.23,136.18,7.3432]
[1718867143344,6.599,136.23,136.16,7.3442]
[1718867143557,7.342,136.21,136.15,7.3446]
[1718867143937,7.3411,136.22,136.16,7.3442]
[1718867144273,13.9396,136.23,136.13,0.51]
[1718867144437,13.9396,136.23,136.18,7.3429]
[1718867144765,6.599,136.23,136.18,7.3429]
[1718867145150,6.599,136.23,136.19,7.3425]
[1718867145468,6.599,136.23,136.2,7.3421]
[1718867145637,6.599,136.23,136.19,7.3424]
[1718867145959,21.77,136.26,136.2,7.3419]
[1718867145960,7.3393,136.26,136.2,7.3419]
[1718867146145,7.3394,136.25,136.2,7.3419]
[1718867146541,6.3512,136.27,136.16,0.17]
[1718867146764,7.339,136.26,136.2,7.3416]
[1718867146960,6.3512,136.27,136.2,7.3416]
[1718867147263,7.3391,136.26,136.21,7.3415]
[1718867147637,7.3395,136.25,136.2,7.3419]
[1718867148558,7.3391,136.26,136.2,7.3419]
[1718867148861,7.3391,136.26,136.21,7.3415]
[1718867149073,0.17,136.25,136.15,16.3482]
[1718867149249,7.3404,136.24,136.19,7.3423]
[1718867149765,7.3396,136.25,136.2,7.3419]
[1718867150264,7.3396,136.25,136.19,7.3424]
[1718867150467,7.3399,136.24,136.19,7.3424]
[1718867151044,7.3396,136.25,136.19,7.3424]
[1718867152053,7.3396,136.25,136.2,7.342]
[1718867152466,6.3512,136.27,136.17,6.6192]
[1718867152646,7.68069851,136.29,136.25,7.339]
[1718867152849,30.0299,136.31,136.26,7.3389]
[1718867153058,7.3367,136.3,136.25,7.3392]
[1718867153565,22.6935,136.34,136.23,15.1387]
[1718867153962,7.336,136.32,136.23,15.1387]
[1718867154160,7.3362,136.31,136.26,7.3386]
[1718867155273,7.3358,136.32,136.27,7.3383]
[1718867155658,7.67560929,136.35,136.29,7.3369]
[1718867155866,13.9454,136.37,136.25,0.17]
[1718867156072,6.6122,136.37,136.28,0.17]
[1718867156370,16.0723,136.38,136.33,7.3347]
[1718867157756,23.4048,136.38,136.33,7.3347]
[1718867157961,16.0723,136.38,136.28,0.17]
[1718867158372,16.0723,136.38,136.28,0.68]
[1718867159276,7.333,136.37,136.28,0.68]
[1718867159465,16.0723,136.38,136.32,7.3354]
[1718867159650,7.3333,136.37,136.32,7.3354]
[1718867160259,7.3335,136.36,136.28,0.17]
[1718867160578,7.3342,136.35,136.29,7.3369]
[1718867160763,7.3347,136.34,136.24,21.77]
[1718867161076,7.3342,136.35,136.25,20.0]
[1718867161374,0.17,136.36,136.28,7.3376]
[1718867161563,7.3349,136.34,136.29,7.3372]
[1718867161758,7.3355,136.33,136.28,7.3374]
[1718867161969,7.3346,136.34,136.24,21.77]
[1718867162169,7.5042,136.35,136.29,7.3368]
[1718867162463,0.17,136.35,136.29,7.3368]
[1718867162673,0.17,136.35,136.24,21.77]
[1718867162674,7.3349,136.34,136.24,21.77]
[1718867162973,16.0723,136.38,136.25,0.34]
[1718867163174,7.3331,136.37,136.31,7.3356]
[1718867163474,7.3331,136.37,136.32,7.3354]
[1718867163671,23.4049,136.38,136.32,7.3354]
[1718867164179,7.3326,136.38,136.32,7.3354]
[1718867164356,7.3326,136.38,136.33,7.3351]
[1718867165474,7.6721,136.39,136.34,7.3343]
[1718867165686,7.3321,136.39,136.34,7.3343]
[1718867166467,13.9438,136.4,136.35,7.3339]
[1718867167077,7.3316,136.4,136.35,7.3339]
[1718867168156,7.331,136.41,136.36,7.3335]
[1718867169586,7.3315,136.4,136.35,7.3338]
[1718867170391,7.3312,136.41,136.31,0.17]
[1718867170589,7.3312,136.41,136.36,7.3333]
[1718867171089,7.3312,136.41,136.35,7.3338]
[1718867171290,7.3314,136.4,136.35,7.3339]
[1718867172186,15.746,136.42,136.31,0.68]
[1718867172394,7.3316,136.4,136.35,7.334]
[1718867173256,7.331,136.41,136.36,7.3335]
[1718867173687,7.331,136.41,136.31,0.68]
[1718867173688,7.3313,136.4,136.35,7.3338]
[1718867174488,55.8418,136.42,136.31,0.68]
[1718867174696,0.34,136.41,136.31,0.68]
[1718867174990,7.3316,136.4,136.35,7.334]
[1718867175570,0.51,136.39,136.32,7.3352]
[1718867175892,7.333,136.37,136.32,7.3352]
[1718867176476,7.3338,136.36,136.31,7.3361]
[1718867176686,0.17,136.38,136.32,7.3356]
[1718867176687,7.3332,136.37,136.32,7.3356]
[1718867177362,13.8584,136.37,136.32,7.3356]
[1718867177560,0.17,136.34,136.23,15.5825]
[1718867177793,7.3359,136.32,136.23,15.5825]
[1718867178172,7.3359,136.32,136.27,7.338]
[1718867178385,7.3353,136.33,136.27,7.338]
[1718867179060,7.3353,136.33,136.28,7.3378]
[1718867179485,0.17,136.32,136.21,6.4149]
[1718867179662,0.68,136.32,136.25,7.3391]
[1718867179861,0.68,136.32,136.25,7.3392]
[1718867180372,7.337,136.3,136.25,7.3392]
[1718867180571,18.341,136.31,136.22,7.3408]
[1718867180776,7.3374,136.29,136.21,6.4149]
[1718867181287,7.3374,136.29,136.17,6.4031]
[1718867181288,7.3387,136.27,136.17,6.4031]
[1718867181683,7.339,136.26,136.21,7.3413]
[1718867181867,7.3385,136.27,136.22,7.341]
[1718867182563,0.34,136.28,136.17,6.4031]
[1718867182765,0.34,136.28,136.24,7.3397]
[1718867183666,0.34,136.28,136.23,7.3403]
[1718867183866,0.34,136.28,136.22,7.3409]
[1718867184069,7.6778,136.28,136.22,7.3409]
[1718867184287,16.4504,136.29,136.18,0.17]
[1718867184606,16.4504,136.29,136.18,0.68]
[1718867184781,16.4504,136.29,136.24,7.3396]
[1718867185182,16.4504,136.29,136.25,7.3393]
[1718867185985,6.0781,136.3,136.18,20.68]
[1718867186183,38.4302,136.33,136.26,7.3387]
[1718867186184,7.3361,136.32,136.26,7.3387]
[1718867186799,23.0515,136.33,136.26,7.3387]
[1718867186800,7.3362,136.31,136.26,7.3387]
[1718867187004,23.0515,136.33,136.23,21.77]
[1718867187200,23.0515,136.33,136.24,0.34]
[1718867187700,7.3358,136.32,136.27,7.3382]
[1718867188000,7.3362,136.31,136.26,7.3387]
[1718867188506,0.34,136.32,136.22,16.1026]
[1718867189507,0.17,136.32,136.28,7.3374]
[1718867189802,7.3359,136.32,136.27,7.3382]
[1718867189985,16.0855,136.36,136.24,21.77]
[1718867190191,16.0855,136.36,136.26,0.17]
[1718867190588,7.3349,136.34,136.29,7.3372]
[1718867190989,7.3354,136.33,136.27,7.3378]
[1718867191308,7.3354,136.33,136.28,7.3376]
[1718867191486,7.3348,136.34,136.28,7.3376]
[1718867191687,0.17,136.34,136.3,7.3367]
[1718867191885,7.6746,136.34,136.29,7.3369]
[1718867192384,0.34,136.34,136.3,7.3364]
[1718867192584,0.34,136.35,136.3,7.3364]
[1718867192806,0.34,136.35,136.31,7.3362]
[1718867193212,16.0855,136.36,136.31,7.3362]
[1718867193816,23.4192,136.36,136.31,7.3362]
[1718867194105,7.334,136.35,136.3,7.3365]
[1718867194677,7.3348,136.34,136.29,7.3371]
[1718867194883,7.3352,136.33,136.28,7.3375]
[1718867195385,7.5047,136.34,136.29,7.3371]
[1718867195703,0.17,136.33,136.28,7.3376]
[1718867196094,0.34,136.33,136.29,7.3372]
[1718867196407,0.17,136.35,136.31,7.3361]
[1718867196615,0.17,136.34,136.3,7.3366]
[1718867197322,7.6746,136.34,136.29,7.3371]
[1718867197480,0.17,136.33,136.29,7.3371]
[1718867197904,16.0855,136.36,136.24,0.34]
[1718867198207,16.0855,136.36,136.27,0.17]
[1718867198410,16.0855,136.36,136.33,7.3346]
[1718867199112,16.0855,136.36,136.33,7.3347]
[1718867199313,16.0855,136.36,136.34,7.3345]
[1718867200487,6.05,136.37,136.34,7.3345]
[1718867201411,22.1725,136.39,136.29,28.4133]
[1718867201595,22.1725,136.39,136.3,20.17]
[1718867201912,22.1725,136.39,136.36,7.3331]
[1718867202492,22.1725,136.39,136.37,7.3329]
[1718867203013,22.1725,136.39,136.36,7.3332]
[1718867203389,22.1725,136.39,136.35,7.3339]
[1718867205514,20.23421141,136.39,136.35,7.3339]
[1718867206390,20.23421141,136.39,136.36,7.3333]
[1718867206593,7.3305,136.42,136.37,7.3328]
[1718867206799,19.09116729,136.43,136.36,7.3334]
[1718867206800,7.6708,136.41,136.36,7.3334]
[1718867207093,7.3305,136.42,136.37,7.3329]
[1718867207295,7.3303,136.42,136.37,7.3329]
[1718867208521,23.2468,136.42,136.37,7.3329]
[1718867209019,23.2468,136.42,136.36,7.3332]
[1718867209020,7.3309,136.41,136.36,7.3332]
[1718867209197,37.6865,136.42,136.28,15.7823]
[1718867209507,7.5021,136.39,136.28,15.7823]
[1718867209813,0.17,136.4,136.35,7.3338]
[1718867210116,0.17,136.4,136.34,7.3344]
[1718867210420,7.332,136.39,136.34,7.3344]
[1718867210616,0.34,136.38,136.34,7.3344]
[1718867211115,7.6725,136.38,136.33,7.3349]
[1718867211308,13.9705,136.37,136.32,7.3352]
[1718867211511,0.34,136.36,136.32,7.3352]
[1718867214307,7.3352,136.33,136.28,7.3375]
[1718867214508,0.34,136.32,136.27,7.3382]
[1718867214694,0.34,136.32,136.22,16.2838]
[1718867214897,0.17,136.32,136.29,7.3372]
[1718867215309,0.17,136.32,136.22,16.2838]
[1718867215310,0.17,136.32,136.28,7.3375]
[1718867215508,0.17,136.32,136.29,7.337]
[1718867216524,9.2011,136.15,136.08,8.82625463]
[1718867216723,9.2011,136.15,135.94,68.43636995]
[1718867216724,7.3506,136.05,136.03,3.82773039]
[1718867217047,1.1988,136.09,135.89,5.92295411]
[1718867217326,8.5494,136.09,135.96,21.77]
[1718867217515,8.5494,136.09,135.99,21.77]
[1718867217896,1.1988,136.09,135.99,21.77]
[1718867218306,1.1988,136.09,135.98,6.1552]
[1718867219908,8.547,136.09,135.98,6.1552]
[1718867220098,7.3487,136.08,135.98,6.1552]
[1718867220297,1.1988,136.09,135.92,16.3715]
[1718867220523,8.5472,136.09,135.93,32.12]
[1718867220738,1.1988,136.09,135.96,22.12]
[1718867220901,1.1988,136.09,135.97,10.0]
[1718867221405,7.3491,136.08,135.98,0.17]
[1718867221609,7.3491,136.08,135.98,0.34]
[1718867221813,7.3493,136.07,135.98,0.34]
[1718867222015,8.5472,136.09,136.0,0.17]
[1718867222219,8.5472,136.09,136.0,0.34]
[1718867222522,1.1988,136.09,136.01,0.17]
[1718867222727,8.5471,136.09,136.02,0.17]
[1718867222921,8.5471,136.09,136.01,0.34]
[1718867222922,0.34,136.08,135.91,6.0986]
[1718867223234,0.17,136.05,135.91,6.0986]
[1718867223437,7.3524,136.01,135.91,6.0986]
[1718867223836,0.51,136.05,135.85,15.1793]
[1718867224036,7.3529,136.01,135.85,37.2993]
[1718867224239,7.3523,136.02,135.85,49.62276658]
[1718867224746,7.3525,136.01,135.85,49.62276658]
[1718867224941,30.0,136.05,135.88,22.12]
[1718867225238,7.3515,136.03,135.88,22.12]
[1718867225476,30.0,136.05,135.89,20.0]
[1718867225611,38.7179,136.04,135.86,20.0]
[1718867225813,7.3518,136.02,135.85,27.50276658]
[1718867226039,7.3524,136.01,135.85,27.50276658]
[1718867226517,7.3524,136.01,135.85,49.62276658]
[1718867227338,7.3524,136.01,135.86,20.0]
[1718867227539,18.3779,136.04,135.86,42.12]
[1718867227720,7.3519,136.02,135.88,0.17]
[1718867227918,7.3519,136.02,135.88,20.17]
[1718867228236,7.3519,136.02,135.9,0.17]
[1718867228428,30.0,136.05,135.9,0.17]
[1718867228741,7.3512,136.04,135.9,0.17]
[1718867229261,7.3519,136.02,135.9,0.17]
[1718867229928,0.17,136.04,135.9,0.17]
[1718867230251,0.68,136.04,135.9,0.17]
[1718867230958,30.0,136.05,135.9,0.17]
[1718867231144,7.3514,136.03,135.9,0.17]
[1718867231517,7.3519,136.02,135.9,0.17]
[1718867232328,30.0,136.05,135.9,0.17]
[1718867232653,7.3509,136.04,135.9,0.17]
[1718867233025,30.0,136.05,135.9,0.17]
[1718867233254,30.0,136.05,135.92,0.17]
[1718867233418,30.0,136.05,135.92,20.68]
[1718867234039,37.3506,136.05,135.92,0.68]
[1718867234968,37.3506,136.05,135.93,6.2002]
[1718867234969,30.0,136.05,135.93,6.2002]
[1718867235255,30.0,136.05,135.94,20.51]
[1718867235426,1.1988,136.09,135.95,0.17]
[1718867235829,7.3498,136.06,135.95,0.17]
[1718867236832,1.1988,136.09,135.95,0.17]
[1718867237964,1.1988,136.09,135.97,22.11]
[1718867238133,1.1988,136.09,135.98,42.79]
[1718867239657,8.5469,136.09,135.98,42.79]
[1718867240364,1.1988,136.09,135.98,42.79]
[1718867241540,8.5468,136.09,135.98,42.79]
[1718867242253,1.1988,136.09,135.98,42.79]
[1718867245158,8.5472,136.09,135.98,42.79]
[1718867245368,7.3486,136.08,135.98,20.68]
[1718867245560,23.0288,136.09,135.98,20.0]
[1718867245746,23.0288,136.09,135.97,20.0]
[1718867245945,7.3497,136.06,135.96,16.4408]
[1718867246157,7.3493,136.07,135.96,16.4408]
[1718867246465,30.377,136.09,135.96,38.5508]
[1718867246843,30.377,136.09,135.97,0.68]
[1718867247459,8.547,136.09,135.97,42.79]
[1718867247864,7.3486,136.08,135.97,42.79]
[1718867248456,1.1988,136.09,135.97,20.17]
[1718867248661,1.1988,136.09,135.99,22.11]
[1718867248843,1.1988,136.09,136.0,20.17]
[1718867249861,1.1988,136.09,136.01,20.51]
[1718867250047,1.1988,136.09,136.02,0.17]
[1718867263656,1.1988,136.09,136.04,0.17]
[1718867263848,1.1988,136.09,136.04,20.68]
[1718867264749,1.1988,136.09,136.04,50.68]
[1718867268360,1.1988,136.09,136.06,0.17]
[1718867268559,1.1988,136.09,136.06,0.68]
[1718867278486,1.1988,136.09,136.05,6.2266]
[1718867279681,1.1988,136.09,136.06,0.68]
[1718867280393,1.1988,136.09,136.05,6.2266]
[1718867281609,1.1988,136.09,136.06,0.51]
[1718867282995,1.1988,136.09,136.07,0.34]
[1718867283187,1.1988,136.09,136.08,0.51]
[1718867283391,1.1988,136.09,136.08,0.34]
[1718867283703,1.1988,136.09,136.08,0.68]
[1718867283891,1.1988,136.09,136.08,0.17]
[1718867284405,1.1988,136.09,136.06,0.17]
[1718867284586,1.1988,136.09,136.06,0.68]
[1718867285700,1.1988,136.09,136.05,6.2266]
[1718867286420,7.3492,136.07,136.0,6.1671]
[1718867286712,7.3492,136.07,135.98,15.5807]
[1718867286994,21.81,136.06,135.98,15.5807]
[1718867287307,29.1598,136.06,135.98,15.5807]
[1718867287598,21.81,136.06,135.98,15.5807]
[1718867287898,21.81,136.06,135.99,0.17]
[1718867288074,7.3488,136.08,135.99,0.68]
[1718867288388,23.0088,136.09,135.99,0.68]
[1718867288896,23.0088,136.09,135.98,15.5807]
[1718867289500,7.3492,136.07,135.98,15.5807]
[1718867290397,7.3492,136.07,135.99,0.51]
[1718867291187,7.3488,136.08,135.99,0.51]
[1718867291803,7.3488,136.08,136.0,0.34]
[1718867291997,7.3488,136.08,136.01,0.17]
[1718867292201,7.3488,136.08,136.01,0.34]
[1718867292578,7.3501,136.06,136.0,0.34]
[1718867292796,7.3501,136.06,136.0,0.17]
[1718867293101,7.3501,136.06,136.0,0.34]
[1718867294285,7.3493,136.07,136.0,0.34]
[1718867294598,29.1593,136.07,136.0,0.34]
[1718867294983,7.3498,136.06,136.0,0.34]
[1718867295522,21.81,136.07,136.0,0.34]
[1718867295685,7.3489,136.08,136.0,0.34]
[1718867297408,7.3492,136.07,136.0,0.34]
[1718867298023,7.3497,136.06,136.0,0.34]
[1718867298237,23.0088,136.09,136.0,0.17]
[1718867298393,7.3497,136.06,136.0,0.17]
[1718867300210,7.3492,136.07,136.0,0.17]
[1718867300418,7.3488,136.08,136.0,0.7409116]
[1718867300997,30.3571,136.09,136.0,0.34]
[1718867301218,23.0088,136.09,136.0,0.34]
[1718867302098,7.35,136.06,136.0,0.34]
[1718867302923,23.0088,136.09,136.0,0.34]
[1718867303113,7.3493,136.07,136.0,0.34]
[1718867303504,23.0088,136.09,136.0,0.34]
[1718867303704,23.0088,136.09,136.01,0.51]
[1718867304019,23.0088,136.09,136.02,0.34]
[1718867304220,30.3573,136.09,136.02,0.34]
[1718867304740,7.3487,136.08,136.02,0.34]
[1718867305343,30.3571,136.09,136.02,0.34]
[1718867306725,7.3486,136.08,136.02,0.34]
[1718867307536,30.3569,136.09,136.02,0.34]
[1718867307841,7.3486,136.08,136.02,0.34]
[1718867309042,23.0088,136.09,136.02,0.34]
[1718867309425,7.28,136.05,136.02,0.34]
[1718867309635,7.3486,136.08,136.02,0.34]
[1718867309838,7.28,136.05,136.02,0.34]
[1718867310645,1.1988,136.09,136.02,0.34]
[1718867310646,7.28,136.04,136.02,0.34]
[1718867311520,7.28,136.05,136.02,0.34]
[1718867311715,29.12,136.08,136.02,0.34]
[1718867311920,8.547,136.09,136.03,0.17]
[1718867311921,7.28,136.06,136.03,0.17]
[1718867312127,7.28,136.06,136.03,0.34]
[1718867312637,7.28,136.06,136.04,0.17]
[1718867313745,8.5469,136.09,136.04,0.17]
[1718867313938,7.28,136.06,136.04,0.17]
[1718867314944,7.28,136.05,136.04,0.17]
[1718867315146,1.1988,136.09,136.04,0.17]
[1718867315347,7.28,136.06,136.04,0.17]
[1718867315944,1.1988,136.09,136.04,0.17]
[1718867316139,7.28,136.06,136.04,0.17]
[1718867316453,1.1988,136.09,136.04,0.17]
[1718867316946,7.28,136.06,136.04,0.17]
[1718867317456,7.28,136.07,136.04,0.17]
[1718867318131,7.28,136.06,136.04,0.17]
[1718867318744,8.5469,136.09,136.04,0.17]
[1718867319052,7.28,136.06,136.04,0.17]
[1718867319844,8.5469,136.09,136.04,0.17]
[1718867320048,7.28,136.06,136.04,0.17]
[1718867320429,7.28,136.06,136.02,0.17]
[1718867321944,1.1988,136.09,136.04,0.17]
[1718867322127,8.4788,136.09,136.04,0.68]
[1718867322322,7.28,136.08,136.04,0.68]
[1718867325137,1.1988,136.09,136.04,0.68]
[1718867325339,7.28,136.08,136.04,0.68]
[1718867326049,1.1988,136.09,136.04,0.68]
[1718867326250,7.28,136.08,136.04,0.68]
[1718867327327,1.1988,136.09,136.04,0.68]
[1718867327834,8.4788,136.09,136.04,0.68]
[1718867328653,8.4788,136.09,136.04,7.96]